bitfinex/quotes_ETHUSD_20250508
["timestamp","ask_amount","ask_price","bid_price","bid_amount"]
[1746666250280,5.44475646,1836.7,1836.0,5.44649579]
[1746666250510,5.44475646,1836.7,1835.9,0.8218]
[1746666250511,5.44618705,1836.2,1835.7,5.44738219]
[1746666250714,13.01989821,1836.3,1835.8,5.44715949]
[1746666250918,5.44695387,1835.9,1835.6,0.8157]
[1746666251121,5.44695387,1835.9,1834.6,4.6377339]
[1746666251122,5.45048236,1834.7,1834.6,4.6377339]
[1746666251279,5.45027826,1834.8,1834.6,4.6377339]
[1746666251484,5.45033965,1834.8,1834.6,4.6377339]
[1746666251698,7.575,1834.9,1834.6,4.6377339]
[1746666251890,7.575,1834.9,1834.6,3.94932027]
[1746666251891,5.45048236,1834.7,1834.6,3.94932027]
[1746666252092,7.65692754,1834.7,1834.6,3.94932027]
[1746666253016,5.45217803,1834.2,1834.0,7.00445176]
[1746666253218,14.12496541,1834.1,1834.0,7.00445176]
[1746666254021,0.7747,1834.1,1834.0,7.00445176]
[1746666254195,14.12496541,1834.1,1834.0,7.00445176]
[1746666254401,15.10778636,1834.1,1834.0,7.00445176]
[1746666255121,20.11436612,1834.1,1834.0,7.00445176]
[1746666255281,5.45315737,1833.8,1833.7,13.03667688]
[1746666255483,29.53673713,1833.8,1833.7,13.03667688]
[1746666255684,27.529,1833.8,1833.7,13.03667688]
[1746666256109,35.05433649,1833.8,1833.7,13.03667688]
[1746666256425,5.45375218,1833.6,1833.5,9.30136677]
[1746666256592,10.46092687,1833.4,1833.0,12.64985881]
[1746666256928,8.45523975,1833.1,1833.0,12.64985881]
[1746666257123,6.0064304,1832.7,1832.6,13.76602282]
[1746666257419,6.0064304,1832.7,1832.4,0.4309526]
[1746666257420,5.45702592,1832.5,1832.4,0.4309526]
[1746666257623,13.36402592,1832.5,1832.4,0.4309526]
[1746666257824,7.907,1832.5,1832.4,0.4309526]
[1746666258026,13.36402592,1832.5,1832.4,0.4309526]
[1746666258426,14.72494712,1832.5,1832.4,0.4309526]
[1746666258629,18.27494712,1832.5,1832.4,0.4309526]
[1746666258799,5.45945352,1831.7,1831.2,5.46086087]
[1746666259000,5.45924036,1831.8,1831.2,5.46086087]
[1746666259221,5.45985108,1831.6,1830.9,6.29432716]
[1746666259535,8.46001939,1831.5,1830.6,14.81583478]
[1746666259731,5.46137422,1831.1,1830.6,14.81602616]
[1746666260025,7.907,1831.0,1830.9,5.46179474]
[1746666260234,7.907,1831.2,1830.7,5.46221062]
[1746666260547,7.912,1831.1,1830.6,14.81602177]
[1746666260832,19.638,1831.7,1831.1,5.46110682]
[1746666261049,19.638,1831.7,1830.7,0.05461912]
[1746666261224,19.638,1831.7,1830.7,5.4622842]
[1746666261225,7.912,1831.6,1830.7,5.4622842]
[1746666261387,19.638,1831.7,1831.6,5.45970735]
[1746666261591,7.912,1832.2,1831.8,5.45885831]
[1746666261792,7.912,1832.2,1831.9,5.45866303]
[1746666262226,7.912,1832.2,1831.3,5.51513432]
[1746666262227,7.912,1832.2,1831.3,0.05459759]
[1746666262445,7.912,1832.2,1831.9,5.45858001]
[1746666262751,7.912,1832.2,1831.2,0.05459797]
[1746666262752,7.912,1832.2,1831.8,5.45889975]
[1746666262918,0.55,1832.0,1830.6,1.91255478]
[1746666263121,2.05,1832.1,1830.7,5.46239143]
[1746666263458,5.45914003,1831.8,1831.2,5.46074886]
[1746666263759,5.46065737,1831.3,1830.7,5.46222918]
[1746666263958,5.46134466,1831.1,1830.6,0.4309526]
[1746666264249,12.05201989,1831.1,1830.6,0.4309526]
[1746666264446,8.19,1831.2,1830.6,0.4309526]
[1746666264648,0.55,1831.1,1830.6,0.4309526]
[1746666264944,6.01239143,1830.7,1830.6,0.4309526]
[1746666265156,21.94037697,1830.7,1830.6,0.4309526]
[1746666265663,14.79984124,1830.7,1830.6,0.4309526]
[1746666265951,15.34984124,1830.7,1830.6,0.4309526]
[1746666266109,14.79984124,1830.7,1830.6,0.4309526]
[1746666266317,15.34984124,1830.7,1830.6,0.4309526]
[1746666266655,14.79984124,1830.7,1830.6,0.4309526]
[1746666266856,15.34984124,1830.7,1830.6,0.4309526]
[1746666267058,14.79984124,1830.7,1830.6,0.4309526]
[1746666267212,13.65239143,1830.7,1830.6,0.4309526]
[1746666267552,14.20239143,1830.7,1830.6,0.4309526]
[1746666267855,13.65239143,1830.7,1830.6,0.4309526]
[1746666268315,14.20239143,1830.7,1830.6,0.4309526]
[1746666268843,13.65239143,1830.7,1830.6,0.4309526]
[1746666269532,15.56384124,1830.7,1830.6,0.4309526]
[1746666270115,5.46239143,1830.7,1830.6,0.4309526]
[1746666270414,13.65939143,1830.7,1830.6,0.4309526]
[1746666271949,8.197,1830.7,1830.6,0.4309526]
[1746666272116,13.65939143,1830.7,1830.6,0.4309526]
[1746666273145,9.01418228,1830.1,1830.0,24.92088394]
[1746666273314,36.89118228,1830.1,1830.0,23.39911415]
[1746666273724,36.89118228,1830.1,1830.0,19.39921415]
[1746666274045,5.46776751,1828.9,1828.8,0.4309526]
[1746666274216,13.66676751,1828.9,1828.8,0.4309526]
[1746666276138,8.199,1828.9,1828.8,0.4309526]
[1746666276512,13.66846664,1829.4,1828.9,5.4675721]
[1746666276712,8.202,1829.4,1829.0,5.46723779]
[1746666277448,8.202,1829.4,1828.8,0.4309526]
[1746666277449,5.46689892,1829.2,1828.8,0.4309526]
[1746666277653,8.202,1829.4,1829.0,5.46731814]
[1746666277812,13.66828412,1829.4,1829.0,5.46719733]
[1746666278013,8.202,1829.4,1829.0,5.46719733]
[1746666278444,8.202,1829.4,1829.0,10.93444591]
[1746666278646,8.202,1829.4,1829.0,5.46719733]
[1746666278830,8.204,1829.5,1828.8,0.4309526]
[1746666279149,5.46671531,1829.3,1828.8,5.89737072]
[1746666279351,5.46644102,1829.4,1828.9,5.46754513]
[1746666279523,5.46644102,1829.4,1828.8,5.89746607]
[1746666279723,5.46699363,1829.2,1828.8,0.42954764]
[1746666279928,5.46775284,1829.0,1828.8,0.42954764]
[1746666280131,8.204,1828.9,1828.8,0.42954764]
[1746666280328,12.05618276,1829.7,1828.8,0.42954764]
[1746666280329,5.46698815,1829.2,1828.8,0.42954764]
[1746666280619,8.204,1829.1,1828.8,0.42954764]
[1746666280816,5.46776751,1828.9,1828.8,0.42954764]
[1746666282113,6.01776751,1828.9,1828.8,0.42954764]
[1746666282313,5.46776751,1828.9,1828.8,0.42954764]
[1746666283318,25.71276751,1828.9,1828.8,0.42954764]
[1746666283517,25.16276751,1828.9,1828.8,0.42954764]
[1746666285061,19.695,1828.9,1828.8,0.42954764]
[1746666285225,25.16276751,1828.9,1828.8,0.42954764]
[1746666287266,25.71276751,1828.9,1828.8,0.42954764]
[1746666287457,28.71276751,1828.9,1828.8,0.42954764]
[1746666288388,25.16276751,1828.9,1828.8,0.42954764]
[1746666288666,33.37076751,1828.9,1828.8,0.42954764]
[1746666289164,27.903,1828.9,1828.8,0.42954764]
[1746666289368,8.208,1829.2,1828.8,0.42954764]
[1746666289580,8.208,1829.5,1829.1,5.46702379]
[1746666289865,27.909,1830.0,1829.6,5.46541271]
[1746666290027,27.909,1830.0,1829.1,0.7559]
[1746666290028,27.909,1830.0,1829.7,5.4651658]
[1746666290232,27.909,1830.0,1829.7,6.27091584]
[1746666290433,5.46490624,1829.9,1829.7,0.8057]
[1746666290672,27.909,1830.0,1829.7,0.8057]
[1746666291372,5.46571943,1829.6,1829.4,0.8266]
[1746666291580,5.46550404,1829.7,1829.4,0.8266]
[1746666291952,5.46481122,1829.9,1829.1,6.29364852]
[1746666292155,5.46507385,1829.9,1829.1,0.8266]
[1746666292329,5.46525417,1829.8,1829.4,5.46606454]
[1746666292744,5.46553432,1829.7,1829.3,5.46648985]
[1746666293073,5.46550237,1829.7,1829.2,5.46664426]
[1746666293232,5.46493444,1829.9,1829.1,6.92305762]
[1746666293428,5.46530572,1829.8,1829.3,5.46639561]
[1746666293689,5.4651962,1829.8,1829.3,5.46636273]
[1746666293853,5.46538441,1829.7,1829.3,5.46636273]
[1746666294035,5.46492765,1829.9,1829.3,5.46643167]
[1746666294235,5.46580795,1829.6,1829.2,6.15903105]
[1746666294541,5.46529406,1829.8,1829.3,5.46653287]
[1746666294742,5.46541696,1829.7,1829.2,5.46673272]
[1746666294979,27.909,1830.0,1829.1,0.8266]
[1746666295283,27.909,1830.0,1829.2,0.05466597]
[1746666295570,27.909,1830.0,1829.7,5.46514426]
[1746666295780,5.46409726,1830.2,1829.8,5.46507737]
[1746666295936,8.341,1830.4,1829.6,0.7693]
[1746666296273,13.80446734,1830.4,1830.0,5.46436197]
[1746666296570,13.80432008,1830.4,1829.6,0.7693]
[1746666296782,5.46377121,1830.3,1829.9,5.46475797]
[1746666297072,8.341,1830.4,1829.7,5.46533873]
[1746666297257,8.341,1830.4,1830.1,5.46411338]
[1746666297569,8.341,1830.4,1830.0,5.46429768]
[1746666297570,13.80441437,1830.4,1830.0,5.46429768]
[1746666298342,5.46464622,1830.0,1829.6,6.23485163]
[1746666298542,8.341,1830.4,1829.6,0.7693]
[1746666298774,8.341,1830.4,1829.6,6.23481434]
[1746666298935,5.46402624,1830.2,1829.6,6.23482855]
[1746666299134,5.46451175,1830.0,1829.6,6.23482855]
[1746666299465,5.46407779,1830.2,1829.7,5.46516793]
[1746666299646,5.46430917,1830.1,1829.7,5.46516793]
[1746666299868,5.46400262,1830.2,1829.7,6.63528787]
[1746666300201,8.341,1830.4,1829.6,0.7693]
[1746666300360,5.46376656,1830.3,1829.8,5.46487558]
[1746666300560,8.341,1830.4,1830.1,5.46403703]
[1746666300979,5.46311262,1830.5,1830.2,0.7941]
[1746666301174,8.34,1830.6,1830.2,6.25776909]
[1746666301388,8.34,1830.6,1830.5,5.46298825]
[1746666301599,8.34,1830.6,1830.2,1.96628474]
[1746666301782,8.34,1830.6,1830.4,5.46316044]
[1746666301982,19.697,1831.7,1830.9,0.8015]
[1746666302182,5.46026258,1831.5,1831.0,5.46131584]
[1746666302354,5.46105356,1831.2,1830.9,0.8015]
[1746666302558,5.46073893,1831.3,1830.9,0.8015]
[1746666302773,5.46073893,1831.3,1830.9,6.2632712]
[1746666303372,28.037,1831.7,1830.9,0.8015]
[1746666303589,5.45983895,1831.6,1831.1,5.46091132]
[1746666303774,5.45983895,1831.6,1831.2,5.46073459]
[1746666304084,28.037,1831.7,1831.4,5.46019435]
[1746666304276,28.037,1831.7,1831.5,0.762]
[1746666304476,28.037,1831.7,1831.5,6.22195856]
[1746666304477,19.697,1831.7,1831.5,6.22195856]
[1746666304768,19.697,1831.7,1831.5,0.762]
[1746666304986,8.339,1831.9,1831.5,6.22182746]
[1746666305194,5.45806809,1832.2,1831.7,5.45919364]
[1746666305406,5.4582199,1832.1,1831.6,5.45951826]
[1746666305703,5.45899994,1831.9,1831.5,0.762]
[1746666306010,3.59250326,1832.3,1831.8,5.45909008]
[1746666306306,3.59250326,1832.3,1831.9,0.8054]
[1746666306600,5.45720089,1832.5,1832.0,5.45823792]
[1746666306899,5.45686564,1832.6,1832.0,5.45851528]
[1746666307105,5.45746111,1832.4,1831.9,0.85998142]
[1746666307285,5.45810583,1832.2,1831.9,0.8054]
[1746666307506,5.45780045,1832.3,1831.9,0.8054]
[1746666307659,5.4564304,1832.7,1831.9,0.8054]
[1746666307859,5.45774581,1832.3,1831.9,0.8054]
[1746666308166,5.45834098,1832.1,1831.9,0.8054]
[1746666308367,8.336,1832.4,1831.9,0.8054]
[1746666308561,5.45835986,1832.1,1831.9,0.8054]
[1746666309171,5.45806958,1832.2,1831.9,0.8054]
[1746666309380,13.79332453,1832.4,1831.9,0.8054]
[1746666309591,5.45841159,1832.1,1831.9,0.8054]
[1746666310062,5.45851528,1832.0,1831.9,0.8054]
[1746666310263,8.336,1832.4,1831.9,0.8054]
[1746666310763,5.45814245,1832.2,1831.9,0.8054]
[1746666310983,8.336,1832.4,1831.9,0.8054]
[1746666311191,13.79335318,1832.4,1831.9,0.8054]
[1746666311390,5.45871431,1832.0,1831.6,0.8261]
[1746666311584,13.79335318,1832.4,1831.6,6.28555348]
[1746666311585,5.45835812,1832.1,1831.6,6.28555348]
[1746666311786,13.79335318,1832.4,1831.7,0.8261]
[1746666311787,5.45747345,1832.4,1831.7,0.8261]
[1746666311996,5.45617538,1832.8,1831.7,0.8261]
[1746666312189,5.45617538,1832.8,1832.0,5.45836678]
[1746666312390,5.4573294,1832.4,1832.0,5.45836678]
[1746666313014,19.688,1833.5,1832.1,0.8472836]
[1746666313218,5.45628752,1832.8,1832.3,5.45736058]
[1746666313381,5.45628752,1832.8,1832.3,10.91478902]
[1746666313593,8.332,1833.1,1832.1,6.25074524]
[1746666313594,13.78726821,1833.1,1832.1,6.25074524]
[1746666313784,8.332,1833.1,1832.2,5.45791944]
[1746666314078,10.9121689,1832.9,1832.5,0.7561]
[1746666314300,5.45605037,1832.9,1832.5,0.7561]
[1746666314509,8.332,1833.1,1832.5,0.7561]
[1746666314711,13.787474,1833.1,1832.7,5.45635893]
[1746666315006,13.78735027,1833.1,1832.7,5.45635893]
[1746666315166,13.78735027,1833.1,1832.6,10.91312819]
[1746666315367,13.78735027,1833.1,1832.7,5.45638735]
[1746666315605,5.45464462,1833.3,1832.5,0.7561]
[1746666315810,5.45615796,1832.8,1832.5,0.7561]
[1746666315981,5.45494217,1833.2,1832.5,0.7561]
[1746666316405,5.45627975,1832.8,1832.5,0.7561]
[1746666316611,5.45491444,1833.3,1832.5,1.3774389]
[1746666316778,5.45415952,1833.5,1833.2,0.7923]
[1746666316980,5.45439358,1833.4,1833.2,0.7923]
[1746666317395,5.45464462,1833.3,1833.2,0.7923]
[1746666317606,5.45412103,1833.5,1832.8,0.7923]
[1746666317907,5.45456259,1833.4,1832.9,5.45556019]
[1746666318121,5.45456259,1833.4,1833.0,5.45536108]
[1746666318284,5.45456259,1833.4,1833.0,5.45549288]
[1746666318483,5.45434998,1833.4,1833.0,5.45549063]
[1746666318685,5.45346573,1833.7,1832.8,0.7923]
[1746666318686,5.45475878,1833.3,1832.8,0.7923]
[1746666318898,5.45475878,1833.3,1832.9,5.45569173]
[1746666319095,5.45379665,1833.6,1832.8,0.7923]
[1746666319299,5.45505524,1833.2,1832.8,0.7923]
[1746666319506,5.45485031,1833.3,1832.9,5.45568832]
[1746666319683,5.45488224,1833.3,1833.0,0.8196]
[1746666320093,5.45435843,1833.4,1833.0,0.8196]
[1746666320299,5.45375218,1833.6,1833.0,0.8196]
[1746666320495,5.45485671,1833.3,1833.0,0.8196]
[1746666320708,5.45496461,1833.2,1833.0,0.8196]
[1746666320888,5.45499455,1833.2,1833.0,0.8196]
[1746666321281,5.45458012,1833.4,1833.0,6.27495125]
[1746666321487,5.45419041,1833.5,1833.1,5.45511086]
[1746666321716,5.45390545,1833.6,1833.1,5.45503702]
[1746666322010,5.45445251,1833.4,1833.0,7.44806641]
[1746666322223,5.45391218,1833.6,1833.2,5.45476108]
[1746666322507,8.328,1833.7,1833.3,0.8165]
[1746666322699,5.45434666,1833.5,1833.3,0.8165]
[1746666323282,5.45321983,1833.8,1833.3,6.2710336]
[1746666323283,5.45352142,1833.7,1833.3,6.2710336]
[1746666323473,5.45316107,1833.8,1833.4,5.4542219]
[1746666323676,8.047,1834.0,1833.3,1.9890849]
[1746666323877,5.45233955,1834.1,1833.7,5.4532383]
[1746666324181,5.45180924,1834.3,1833.9,6.22946813]
[1746666324390,5.45153888,1834.4,1834.0,5.45231347]
[1746666324827,5.45111394,1834.5,1833.9,6.22952692]
[1746666325042,5.45171855,1834.3,1833.9,11.68220353]
[1746666325243,13.49794304,1834.6,1834.2,5.45178556]
[1746666325534,5.45119339,1834.5,1834.1,5.45213635]
[1746666325714,5.45021137,1834.8,1834.1,5.45213635]
[1746666325915,5.45096799,1834.6,1834.2,6.22857005]
[1746666326387,5.45160423,1834.4,1834.2,0.7768]
[1746666326593,5.4513202,1834.5,1834.2,0.7768]
[1746666326928,5.45025499,1834.8,1834.2,0.7768]
[1746666327137,5.45158957,1834.4,1834.2,0.7768]
[1746666327287,5.45167093,1834.3,1834.2,0.7768]
[1746666327493,5.45158957,1834.4,1834.2,0.7768]
[1746666328044,5.45246069,1834.1,1833.9,0.8001]
[1746666328209,5.45385538,1833.6,1833.5,0.8001]
[1746666328386,5.45346776,1833.7,1833.0,0.8001]
[1746666328586,5.45315737,1833.8,1833.0,0.8001]
[1746666328828,5.45421083,1833.5,1833.1,5.45521637]
[1746666328990,5.45390833,1833.6,1833.2,5.50937745]
[1746666329186,13.49859175,1833.7,1833.3,0.8001]
[1746666329390,5.45424548,1833.5,1833.3,0.8001]
[1746666329622,13.4986059,1833.7,1833.3,0.8001]
[1746666329825,0.012,2016.0,1833.9,0.8001]
[1746666329826,5.44988827,1834.9,1833.9,0.8001]
[1746666330028,5.45245628,1834.1,1833.9,0.8001]
[1746666330419,5.45153298,1834.4,1833.9,0.8001]
[1746666330614,5.45169591,1834.3,1833.9,0.8001]
[1746666330933,3.0,1834.6,1833.9,0.8001]
[1746666331230,5.45091355,1834.6,1834.0,5.45251636]
[1746666331402,5.45091355,1834.6,1834.1,5.99730657]
[1746666331606,5.45091355,1834.6,1834.1,5.45205493]
[1746666332315,5.45132161,1834.5,1834.0,5.45240424]
[1746666332623,5.45143719,1834.4,1834.0,5.4525627]
[1746666332931,5.45181246,1834.3,1833.9,0.8001]
[1746666333117,5.45119169,1834.5,1833.9,0.8001]
[1746666333321,5.45119239,1834.5,1834.0,5.45237702]
[1746666333500,5.45107272,1834.6,1834.1,5.45209051]
[1746666333833,5.45108045,1834.5,1834.1,5.45221805]
[1746666334226,10.9024419,1834.5,1834.1,5.45221805]
[1746666334423,5.45137975,1834.4,1834.1,5.45221805]
[1746666334734,8.043,1834.6,1833.9,0.8001]
[1746666334951,5.4529638,1833.9,1833.5,0.7872]
[1746666335097,5.45375218,1833.6,1833.5,0.7872]
[1746666335437,13.49638369,1833.8,1833.5,0.7872]
[1746666335637,5.45375218,1833.6,1833.5,0.7872]
[1746666335836,5.45349849,1833.7,1833.5,0.7872]
[1746666336207,8.043,1833.8,1833.5,0.7872]
[1746666336623,5.45359488,1833.7,1833.5,0.7872]
[1746666336793,5.45424732,1833.5,1833.1,5.45507591]
[1746666336997,5.45460903,1833.4,1833.0,6.25900569]
[1746666337460,5.45345476,1833.7,1833.0,0.8035]
[1746666337649,5.45521603,1833.2,1833.0,0.8035]
[1746666338068,5.45521603,1833.2,1832.7,5.45626223]
[1746666338069,13.49669255,1833.3,1832.7,0.7542]
[1746666338274,5.45494217,1833.2,1832.5,5.45684396]
[1746666338473,5.45546751,1833.1,1832.4,0.7869]
[1746666338780,13.49683913,1833.3,1832.9,5.45582777]
[1746666338929,5.45494348,1833.2,1832.7,5.45625373]
[1746666339129,8.042,1833.3,1832.6,6.21657682]
[1746666339130,5.45580306,1833.0,1832.6,0.76]
[1746666339378,5.45636147,1832.8,1832.3,6.21747673]
[1746666339539,5.45563628,1833.0,1832.6,5.45666021]
[1746666339741,5.45385979,1833.6,1832.7,0.769]
[1746666339956,5.45405746,1833.5,1833.2,0.769]
[1746666340339,5.45345476,1833.7,1832.8,5.45603387]
[1746666340564,5.45474641,1833.3,1832.9,5.4556717]
[1746666340767,5.45460281,1833.4,1832.3,5.45758006]
[1746666340964,31.67502484,1834.3,1831.7,8.459233]
[1746666340965,5.45117958,1834.5,1833.7,5.45322276]
[1746666341289,19.653,1835.1,1834.0,5.4525627]
[1746666341456,5.45041182,1834.8,1834.4,0.769]
[1746666341781,3.0,1834.9,1834.1,0.769]
[1746666341943,5.45214508,1834.2,1833.8,0.769]
[1746666342148,5.45267573,1834.0,1833.5,0.76]
[1746666342345,8.043,1834.2,1833.5,1.38141868]
[1746666342550,13.49508125,1834.2,1833.7,5.45324258]
[1746666342750,5.45317486,1833.8,1833.5,0.76]
[1746666343077,5.45297295,1833.9,1833.5,0.76]
[1746666343378,5.45466478,1833.3,1832.6,0.76]
[1746666343540,5.45452894,1833.4,1832.9,10.91132234]
[1746666343873,5.45479985,1833.3,1832.9,5.45562963]
[1746666344036,8.043,1833.5,1833.0,5.45534898]
[1746666344234,5.4543732,1833.4,1832.9,5.45565668]
[1746666344532,5.45461865,1833.4,1832.9,5.45565668]
[1746666344872,5.45461865,1833.4,1832.9,10.91128468]
[1746666345084,5.45461865,1833.4,1832.9,5.455628]
[1746666345556,5.45498235,1833.2,1832.8,5.45594567]
[1746666345874,8.043,1833.5,1832.7,5.45631232]
[1746666346080,8.043,1833.5,1832.8,10.91186494]
[1746666346081,5.4548798,1833.3,1832.8,10.91186494]
[1746666346373,5.45511224,1833.2,1832.8,5.45609631]
[1746666346575,13.49706167,1833.5,1832.7,5.45622443]
[1746666346780,0.55,1833.3,1832.3,1.18812557]
[1746666346962,5.45732372,1832.4,1832.3,0.41292557]
[1746666347167,8.044,1832.4,1832.0,6.23367956]
[1746666347366,8.044,1832.4,1832.0,7.4029142]
[1746666347566,13.5014753,1832.4,1832.0,7.40281748]
[1746666347766,5.45771522,1832.3,1832.0,0.7752]
[1746666348081,8.044,1832.4,1832.0,0.7752]
[1746666348385,5.45613269,1832.8,1832.2,5.45772041]
[1746666348698,5.45663251,1832.7,1832.2,5.45769997]
[1746666348880,8.044,1832.8,1832.4,5.45703362]
[1746666349041,13.50032227,1832.8,1832.3,5.45744192]
[1746666349241,8.044,1832.8,1832.2,5.45781075]
[1746666349479,5.4564304,1832.7,1832.2,6.54939741]
[1746666349685,5.45765698,1832.3,1832.0,0.7752]
[1746666349883,5.45743105,1832.4,1832.0,0.7752]
[1746666350095,5.45712765,1832.5,1832.0,0.7752]
[1746666350250,5.45712765,1832.5,1832.1,5.45818086]
[1746666350450,5.45659878,1832.7,1832.3,5.45756641]
[1746666350684,13.50159878,1832.7,1832.3,5.45756641]
[1746666351889,13.50159878,1832.7,1832.2,10.91545325]
[1746666352078,10.91266654,1832.8,1832.3,5.45748429]
[1746666352280,10.91266654,1832.8,1832.0,0.7752]
[1746666352281,5.45723428,1832.5,1832.0,0.7752]
[1746666352487,5.45723428,1832.5,1832.1,5.45809267]
[1746666352804,13.26656645,1832.7,1832.2,5.45768704]
[1746666352964,5.45678495,1832.6,1832.2,5.45781591]
[1746666353295,5.45730137,1832.5,1832.0,6.23351797]
[1746666353495,5.45730137,1832.5,1832.1,5.45814141]
[1746666353683,7.81,1832.7,1832.0,6.23350512]
[1746666353888,5.45684282,1832.6,1832.0,6.85692805]
[1746666354085,5.45729926,1832.5,1832.0,6.23352728]
[1746666354274,5.4575364,1832.4,1832.0,6.23369931]
[1746666354470,5.45812898,1832.2,1831.6,0.7755]
[1746666354676,7.811,1832.2,1831.6,6.23503356]
[1746666355000,5.45927593,1831.8,1831.3,0.7931]
[1746666355300,5.45951259,1831.7,1831.3,6.25363743]
[1746666355478,13.27051259,1831.7,1831.3,6.25363743]
[1746666355818,5.45982204,1831.6,1831.3,0.7931]
[1746666356001,5.4604136,1831.4,1831.0,6.2544614]
[1746666356242,5.46014979,1831.5,1831.1,5.46107973]
[1746666356369,7.811,1831.6,1831.0,1.96471234]
[1746666356688,5.46070774,1831.3,1831.0,0.7931]
[1746666357081,5.46111026,1831.2,1830.8,5.46196964]
[1746666357281,13.27437014,1831.1,1830.7,6.23179191]
[1746666357491,13.27431289,1831.1,1830.7,6.23178551]
[1746666357707,13.27431289,1831.1,1829.7,6.7482565]
[1746666357708,0.55,1831.0,1829.7,6.7482565]
[1746666358004,5.46376136,1830.3,1829.7,6.7482565]
[1746666358304,9.01209307,1830.8,1829.7,6.7482565]
[1746666358305,5.46448087,1830.0,1829.7,6.7482565]
[1746666358682,7.813,1830.1,1829.7,6.7482565]
[1746666358683,13.2772506,1830.1,1829.7,6.7482565]
[1746666358883,13.2772506,1830.1,1829.6,5.46555097]
[1746666359082,13.2772506,1830.1,1829.6,6.55869471]
[1746666359294,13.2772506,1830.1,1829.6,6.55856966]
[1746666359474,13.2772506,1830.1,1829.6,5.46552516]
[1746666359805,5.46373754,1830.3,1829.6,0.05465353]
[1746666360009,7.816,1830.2,1829.8,5.46486768]
[1746666360211,5.46541639,1829.7,1829.4,0.7695]
[1746666360423,5.4659743,1829.5,1829.1,6.42079954]
[1746666360628,7.816,1829.7,1829.1,5.63759954]
[1746666360909,5.46659999,1829.3,1829.1,5.63759954]
[1746666361226,13.28287076,1829.2,1829.1,5.63759954]
[1746666362717,5.46666771,1829.3,1829.1,5.63759954]
[1746666362887,7.82,1829.2,1829.1,5.63759954]
[1746666363089,13.28689618,1829.2,1828.8,0.42954764]
[1746666363283,7.82,1829.2,1828.8,0.42954764]
[1746666363538,5.46704055,1829.2,1828.8,0.42954764]
[1746666363713,7.82,1829.1,1828.8,0.42954764]
[1746666364241,7.82,1829.1,1828.8,5.89747122]
[1746666364443,3.0,1829.6,1828.8,0.42954764]
[1746666364586,6.5858578,1830.4,1828.9,0.8166]
[1746666364792,37.692,1830.3,1828.9,0.87127778]
[1746666365015,18.01,1830.2,1829.7,5.46519232]
[1746666365217,23.47396486,1830.2,1829.7,5.46522832]
[1746666365443,23.47396486,1830.2,1829.7,5.46512782]
[1746666365637,18.01,1830.2,1829.7,0.54651278]
[1746666365808,18.01,1830.2,1829.9,5.46450947]
[1746666366132,18.01,1830.2,1829.4,0.7502]
[1746666366423,18.01,1830.2,1829.8,5.46495345]
[1746666366623,5.46433131,1830.1,1829.6,5.46550452]
[1746666367032,18.01,1830.2,1829.4,6.21628664]
[1746666367033,5.46494299,1829.9,1829.4,6.21628664]
[1746666367238,18.01,1830.2,1829.7,5.46536878]
[1746666367239,5.464253,1830.1,1829.7,5.46536878]
[1746666367444,5.464253,1830.1,1829.6,5.46547677]
[1746666367727,5.464253,1830.1,1829.5,5.46584848]
[1746666367728,5.46554186,1829.7,1829.3,5.46635766]
[1746666367899,7.822,1829.7,1829.0,0.752]
[1746666368100,5.46676467,1829.3,1828.8,5.89745017]
[1746666368297,7.823,1829.2,1828.8,0.42954764]
[1746666368496,13.28988044,1829.2,1828.8,5.89749509]
[1746666368703,5.46754997,1829.0,1828.8,0.42954764]
[1746666368909,7.823,1829.2,1828.8,0.42954764]
[1746666368910,5.46734371,1829.1,1828.8,0.42954764]
[1746666369090,13.29005412,1829.2,1828.8,0.42954764]
[1746666369505,5.46719852,1829.1,1828.8,0.42954764]
[1746666369910,13.2900367,1829.2,1828.8,0.42954764]
[1746666370136,13.2900367,1829.2,1828.8,5.89748844]
[1746666370345,7.823,1829.3,1828.8,0.42954764]
[1746666370642,7.823,1829.3,1829.1,5.46696615]
[1746666370840,7.823,1829.3,1829.0,5.46733956]
[1746666371003,7.823,1829.3,1828.8,0.42954764]
[1746666371209,7.823,1829.3,1829.0,5.46728459]
[1746666371430,7.823,1829.3,1828.8,0.42954764]
[1746666371634,7.823,1829.3,1829.2,5.46687076]
[1746666372317,7.823,1829.3,1829.1,6.23956662]
[1746666372510,7.823,1829.3,1829.2,5.46687076]
[1746666375724,7.823,1829.3,1829.1,6.23956662]
[1746666375934,7.823,1829.3,1829.2,5.46687076]
[1746666376763,19.69,1829.5,1829.4,5.46627309]
[1746666376933,19.69,1829.5,1829.1,0.7726]
[1746666377140,25.1560868,1829.5,1829.1,6.23965316]
[1746666377375,30.62232634,1829.5,1829.1,6.23965316]
[1746666377657,5.46370464,1830.3,1829.1,6.23965316]
[1746666377658,10.19,1830.1,1829.1,1.39656532]
[1746666377855,7.825,1830.1,1829.2,0.05467306]
[1746666378068,5.46776751,1828.9,1828.8,0.42954764]
[1746666378275,13.29276751,1828.9,1828.8,0.42954764]
[1746666378459,3.0,1829.2,1828.8,0.42954764]
[1746666378624,5.52197943,1829.1,1828.8,0.42954764]
[1746666378954,5.46776751,1828.9,1828.8,0.42954764]
[1746666379136,0.05467322,1828.9,1828.8,0.42954764]
[1746666379541,5.52244073,1828.9,1828.8,0.42954764]
[1746666379956,0.05467322,1828.9,1828.8,0.42954764]
[1746666380472,0.05467322,1829.1,1828.8,0.42954764]
[1746666380651,5.52201254,1829.1,1828.8,0.42954764]
[1746666381128,0.05467322,1829.1,1828.8,5.89759457]
[1746666381322,7.87967322,1829.2,1828.8,6.56668041]
[1746666381523,7.87967322,1829.2,1828.8,5.89741872]
[1746666381753,7.87967322,1829.2,1828.9,5.46752886]
[1746666382148,7.87967322,1829.2,1828.9,10.9350744]
[1746666382474,7.87967322,1829.2,1828.9,5.46752886]
[1746666382681,7.87967322,1829.2,1828.9,5.46776244]
[1746666382884,13.34677946,1829.2,1828.8,0.42954764]
[1746666383045,7.825,1829.2,1828.8,0.42954764]
[1746666383242,7.825,1829.2,1829.0,5.4673455]
[1746666383243,7.87967322,1829.2,1829.0,5.4673455]
[1746666383845,7.87967322,1829.2,1829.1,5.46716964]
[1746666384051,13.27889875,1829.6,1829.1,10.93433928]
[1746666384286,0.05467322,1829.5,1829.2,5.46687076]
[1746666384483,5.46348357,1830.4,1829.5,5.4659743]
[1746666384684,13.27583628,1830.6,1829.7,0.7885]